bitfinex-derivatives/quotes_SOLF0:USTF0_20250411
["timestamp","ask_amount","ask_price","bid_price","bid_amount"]
[1744330029678,8.94415411,112.71,112.67,35.88]
[1744330029679,0.06555411,112.71,112.67,35.88]
[1744330030582,0.06555411,112.71,112.68,8.8802]
[1744330031785,0.06555411,112.71,112.69,8.8793]
[1744330032085,0.06555411,112.71,112.67,35.88]
[1744330032891,0.06555411,112.71,112.66,4.304]
[1744330033079,35.92555411,112.71,112.64,35.86]
[1744330033388,35.86,112.71,112.64,35.86]
[1744330033589,0.06063136,112.69,112.64,35.86]
[1744330033990,0.06063136,112.69,112.6,6.7325]
[1744330034285,35.86,112.68,112.6,6.7325]
[1744330034490,0.06469585,112.66,112.6,6.7325]
[1744330034690,8.94739585,112.66,112.63,8.8846]
[1744330034886,0.06469585,112.66,112.6,6.7325]
[1744330035285,0.06469585,112.66,112.6,13.3146]
[1744330035481,0.06469585,112.66,112.6,4.428]
[1744330035886,0.06469585,112.66,112.6,6.6655]
[1744330036593,0.06469585,112.66,112.64,8.8833]
[1744330036783,0.06469585,112.66,112.6,6.6655]
[1744330036984,0.06469585,112.66,112.61,35.86]
[1744330038389,0.06469585,112.66,112.57,35.88]
[1744330038589,35.86,112.67,112.58,8.8881]
[1744330038790,35.86,112.67,112.56,4.4352]
[1744330038791,0.0574342,112.63,112.56,4.4352]
[1744330039097,35.88,112.62,112.56,4.4352]
[1744330039283,35.93694268,112.61,112.57,8.8889]
[1744330040798,35.93694268,112.61,112.56,2.3093]
[1744330041793,0.05694268,112.61,112.56,2.3093]
[1744330042098,0.05694268,112.61,112.59,8.8872]
[1744330042901,0.05694268,112.61,112.6,8.887]
[1744330043094,0.05694268,112.61,112.56,2.3093]
[1744330043791,44.7638,112.64,112.57,35.88]
[1744330044102,35.88,112.64,112.57,35.88]
[1744330044401,35.88,112.64,112.61,8.8857]
[1744330044597,35.88,112.64,112.57,35.88]
[1744330044804,8.8852,112.63,112.57,35.88]
[1744330045000,0.05669183,112.62,112.59,0.06830118]
[1744330046299,0.05669183,112.62,112.6,8.8869]
[1744330047305,8.94219183,112.62,112.59,8.95580118]
[1744330047506,0.05669183,112.62,112.59,0.06830118]
[1744330048005,8.887,112.6,112.59,0.06830118]
[1744330048306,35.9,112.61,112.59,0.06830118]
[1744330048506,0.05669183,112.62,112.6,8.8869]
[1744330048806,0.05669183,112.62,112.59,0.06830118]
[1744330051507,35.95669183,112.62,112.59,0.06830118]
[1744330052710,8.8868,112.61,112.59,0.06830118]
[1744330055415,44.84229183,112.62,112.59,0.06830118]
[1744330055612,0.05669183,112.62,112.59,0.06830118]
[1744330056313,0.05669183,112.62,112.61,8.8862]
[1744330059415,0.05669183,112.62,112.6,13.2817]
[1744330059614,0.05669183,112.62,112.6,4.3949]
[1744330060211,0.05669183,112.62,112.6,13.2815]
[1744330060913,0.05669183,112.62,112.6,11.1475]
[1744330061611,0.05669183,112.62,112.59,0.06830118]
[1744330062313,8.94249183,112.62,112.59,8.95610118]
[1744330062513,8.94249183,112.62,112.59,0.06830118]
[1744330064023,0.05669183,112.62,112.59,0.06830118]
[1744330065418,8.8862,112.61,112.59,0.06830118]
[1744330066116,0.05669183,112.62,112.59,0.06830118]
[1744330068024,8.8866,112.61,112.59,0.06830118]
[1744330068319,0.05669183,112.62,112.59,0.06830118]
[1744330069620,8.887,112.6,112.59,0.06830118]
[1744330069813,45.167,112.6,112.59,0.06830118]
[1744330072923,36.28,112.6,112.5,36.3]
[1744330073110,36.28,112.6,112.51,2.1457]
[1744330073518,8.8907,112.56,112.53,8.8924]
[1744330073823,36.3,112.57,112.51,2.1457]
[1744330074122,0.06321746,112.56,112.51,2.1457]
[1744330074512,8.8872,112.6,112.57,8.8893]
[1744330074919,8.8872,112.6,112.52,36.3]
[1744330075211,8.8866,112.61,112.57,8.8888]
[1744330075417,36.3,112.62,112.57,8.8888]
[1744330075723,8.95166759,112.61,112.58,0.06490427]
[1744330076220,0.06496759,112.61,112.58,0.06490427]
[1744330076715,48.44435183,112.66,112.58,36.36490427]
[1744330076917,8.8843,112.64,112.58,36.3]
[1744330077531,8.8835,112.65,112.58,36.3]
[1744330077824,36.3,112.66,112.6,8.8864]
[1744330078119,0.06393596,112.63,112.6,8.94609108]
[1744330078325,0.06393596,112.63,112.6,0.05969108]
[1744330078719,36.36393596,112.63,112.6,0.05969108]
[1744330079624,8.8859,112.62,112.6,0.05969108]
[1744330079823,36.36393596,112.63,112.6,0.05969108]
[1744330080223,8.8859,112.62,112.6,0.05969108]
[1744330080928,36.36393596,112.63,112.6,0.05969108]
[1744330081225,1248.66,112.68,112.61,36.3]
[1744330081419,8.8819,112.67,112.64,8.8838]
[1744330081723,36.3,112.69,112.62,2.1242]
[1744330082121,57.45760733,112.69,112.65,8.8824]
[1744330082323,0.06801939,112.68,112.64,36.3]
[1744330082528,38.00180733,112.69,112.66,0.05997319]
[1744330083027,145.73222201,112.71,112.66,0.05997319]
[1744330083321,145.73222201,112.71,112.68,8.88]
[1744330083627,0.05783444,112.71,112.64,36.3]
[1744330083929,288.06473668,112.72,112.68,8.93968454]
[1744330084127,705.9965,112.75,112.68,0.05978454]
[1744330084425,705.9965,112.75,112.67,36.28]
[1744330084621,712.5354,112.75,112.67,36.28]
[1744330084823,37.688,112.76,112.67,36.28]
[1744330085025,36.28,112.76,112.72,8.8771]
[1744330085226,45.1548,112.76,112.72,8.8771]
[1744330085422,0.06621493,112.75,112.73,0.06238937]
[1744330086029,0.06621493,112.75,112.66,36.28]
[1744330086226,36.28,112.76,112.66,36.28]
[1744330086932,40.7944,112.8,112.66,36.28]
[1744330087229,0.05825232,112.74,112.72,0.06509104]
[1744330087522,40.7944,112.8,112.71,36.28]
[1744330087728,0.0670461,112.74,112.73,8.8767]
[1744330087929,8.93827657,112.77,112.74,0.05945765]
[1744330088121,8.8745,112.76,112.74,0.05945765]
[1744330088523,0.06466578,112.77,112.74,0.05945765]
[1744330088718,8.93856578,112.77,112.74,0.05945765]
[1744330088921,0.06466578,112.77,112.74,0.05945765]
[1744330089325,0.06466578,112.77,112.76,8.8744]
[1744330089730,0.06466578,112.77,112.74,36.31945765]
[1744330090531,0.06466578,112.77,112.75,8.8747]
[1744330091723,0.06466578,112.77,112.74,45.19505765]
[1744330092125,0.06466578,112.77,112.74,0.05945765]
[1744330092722,8.8749,112.76,112.74,0.05945765]
[1744330092922,36.32466578,112.77,112.74,0.05945765]
[1744330093324,8.8752,112.75,112.74,0.05945765]
[1744330095233,2.1362,112.76,112.74,0.05945765]
[1744330095636,0.06466578,112.77,112.74,8.93515765]
[1744330095841,0.06466578,112.77,112.74,0.05945765]
[1744330096323,0.06466578,112.77,112.75,8.8751]
[1744330098832,8.8709,112.81,112.74,36.29945765]
[1744330099138,36.24,112.83,112.75,4.385]
[1744330099326,45.1092,112.83,112.79,8.8717]
[1744330099522,36.24,112.83,112.77,36.24]
[1744330100035,8.8701,112.82,112.77,36.24]
[1744330100234,0.06183828,112.81,112.79,0.06270491]
[1744330101733,0.06183828,112.81,112.79,8.93400491]
[1744330101934,0.06183828,112.81,112.79,0.06270491]
[1744330102330,0.06183828,112.81,112.8,8.8712]
[1744330102732,36.24,112.85,112.79,0.06270491]
[1744330102928,36.24,112.88,112.82,8.8692]
[1744330103439,8.8669,112.86,112.82,8.8692]
[1744330103732,36.24,112.88,112.81,8.87]
[1744330103935,36.24,112.88,112.83,0.05653285]
[1744330103936,0.05709968,112.85,112.83,0.05653285]
[1744330104329,8.92489968,112.85,112.83,0.05653285]
[1744330104833,0.05709968,112.85,112.83,0.05653285]
[1744330105037,8.8681,112.84,112.83,0.05653285]
[1744330107742,0.05709968,112.85,112.83,0.05653285]
[1744330108034,0.05709968,112.85,112.84,8.8681]
[1744330108239,4.5246,112.9,112.83,36.27653285]
[1744330108541,36.22,112.91,112.86,8.8665]
[1744330109238,36.22,112.91,112.83,36.22]
[1744330109439,8.8654,112.88,112.87,0.05698468]
[1744330109938,2.32158478,112.9,112.81,2.3198]
[1744330110241,8.8679,112.85,112.76,42.9111]
[1744330110736,8.8679,112.85,112.81,8.87]
[1744330111142,8.93128985,112.84,112.82,0.06052554]
[1744330112042,0.06318985,112.84,112.82,0.06052554]
[1744330112243,0.06318985,112.84,112.82,8.93012554]
[1744330112439,0.06318985,112.84,112.82,0.06052554]
[1744330112736,0.06318985,112.84,112.83,8.8689]
[1744330112942,0.06318985,112.84,112.82,0.06052554]
[1744330113340,8.8689,112.83,112.82,0.06052554]
[1744330115247,8.93168985,112.84,112.82,0.06052554]
[1744330116742,0.06318985,112.84,112.82,0.06052554]
[1744330117147,0.06318985,112.84,112.82,8.92982554]
[1744330117350,0.06318985,112.84,112.82,0.06052554]
[1744330120349,8.93128985,112.84,112.82,0.06052554]
[1744330120750,8.8689,112.83,112.82,0.06052554]
[1744330121852,8.93168985,112.84,112.82,0.06052554]
[1744330123055,8.8689,112.83,112.82,0.06052554]
[1744330124256,8.93168985,112.84,112.82,0.06052554]
[1744330125960,0.06318985,112.84,112.82,0.06052554]
[1744330126562,36.48,112.91,112.84,8.8676]
[1744330126863,36.48,112.91,112.83,36.48]
[1744330127859,0.05968799,112.88,112.86,8.92391929]
[1744330128163,0.05968799,112.88,112.86,0.05781929]
[1744330128758,36.48,112.87,112.7,189.1351482]
[1744330128963,4.4248,112.86,112.75,36.48]
[1744330129264,8.8685,112.84,112.81,8.8701]
[1744330129966,8.8689,112.83,112.81,0.06183965]
[1744330131165,0.06763652,112.84,112.81,0.06183965]
[1744330132464,8.8693,112.83,112.81,0.06183965]
[1744330132765,0.06763652,112.84,112.81,0.06183965]
[1744330132959,36.54763652,112.84,112.81,0.06183965]
[1744330133160,8.8689,112.83,112.81,0.06183965]
[1744330133464,36.54763652,112.84,112.81,0.06183965]
[1744330133764,8.8689,112.83,112.81,0.06183965]
[1744330134167,36.54763652,112.84,112.81,0.06183965]
[1744330134664,0.06763652,112.84,112.81,0.06183965]
[1744330134860,8.8693,112.83,112.81,0.06183965]
[1744330135268,36.54763652,112.84,112.81,0.06183965]
[1744330135468,8.8695,112.83,112.81,0.06183965]
[1744330135657,36.54763652,112.84,112.81,0.06183965]
[1744330136367,36.54763652,112.84,112.74,6.9119]
[1744330136563,36.48,112.84,112.74,6.9119]
[1744330136765,63.1,112.84,112.72,36.48]
[1744330136970,63.1,112.84,112.7,142.07224868]
[1744330137172,8.875,112.76,112.72,8.8771]
[1744330137870,0.06518391,112.75,112.73,0.06465224]
[1744330138460,36.54518391,112.75,112.73,0.06465224]
[1744330138663,8.8759,112.74,112.73,0.06465224]
[1744330138971,36.54518391,112.75,112.68,36.93126782]
[1744330139175,36.48,112.75,112.68,36.93126782]
[1744330140072,0.06146086,112.73,112.7,0.06657891]
[1744330140266,36.5,112.72,112.7,0.06657891]
[1744330140668,8.8783,112.71,112.7,0.06657891]
[1744330140868,36.5,112.72,112.64,36.5]
[1744330141173,36.5,112.72,112.66,8.8817]
[1744330141567,36.5,112.72,112.59,135.41464868]
[1744330141774,4.5089,112.71,112.64,8.8834]
[1744330141968,0.06585027,112.68,112.66,0.05728424]
[1744330144575,36.5,112.72,112.67,36.5]
[1744330144773,36.5,112.75,112.67,36.5]
[1744330145076,8.8771,112.73,112.7,8.8789]
[1744330145275,36.5,112.75,112.67,36.5]
[1744330145468,2.1418,112.76,112.67,36.5]
[1744330145669,11.0166,112.76,112.72,8.8771]
[1744330145864,0.0603298,112.73,112.7,36.57880006]
[1744330146173,0.0603298,112.73,112.72,0.05965891]
[1744330148575,8.9370298,112.73,112.72,0.05965891]
[1744330148776,0.0603298,112.73,112.67,36.52]
[1744330149080,8.8779,112.72,112.68,8.8802]
[1744330149980,8.8779,112.72,112.69,0.06117359]
[1744330150280,0.0603298,112.73,112.69,0.06117359]
[1744330150675,0.0603298,112.73,112.72,8.8775]
[1744330151280,0.0603298,112.73,112.71,8.94211016]
[1744330151482,0.0603298,112.73,112.71,0.06421016]
[1744330151683,36.52,112.79,112.71,0.06421016]
[1744330151981,45.3924,112.79,112.75,8.8747]
[1744330152484,36.52,112.79,112.71,4.5521]
[1744330152873,0.05627304,112.76,112.74,0.06014535]
[1744330153981,8.93067304,112.76,112.74,0.06014535]
[1744330154177,98.35288774,112.89,112.74,0.06014535]
[1744330154375,297.6203951,113.07,112.85,26.62]
[1744330154584,297.6203951,113.07,112.84,17.7361]
[1744330154585,39.6,113.06,112.86,44.1709]
[1744330154784,41.7541,113.06,112.86,44.1709]
[1744330154977,41.7541,113.06,112.87,1.77195003]
[1744330155178,4.3649,113.06,112.87,41.37195003]
[1744330155383,9.546e-05,112.98,112.95,0.05641186]
[1744330155582,9.546e-05,112.98,112.96,15.75524991]
[1744330155884,39.6,113.01,113.0,8.855]
[1744330156184,1071.523329,113.05,113.0,5.53312446]
[1744330156378,39.6,113.04,113.01,5.53312446]
[1744330156578,39.65759741,113.04,113.01,0.05972982]
[1744330158090,39.65759741,113.04,113.01,8.91442982]
[1744330158790,39.65759741,113.04,113.02,365.33804232]
[1744330159389,39.58,113.03,113.02,365.33804232]
[1744330159599,39.58,113.03,113.02,370.8707493]
[1744330159789,39.58,113.03,113.02,379.7247493]
[1744330160292,39.58,113.03,113.02,106.01322114]
[1744330161090,0.05759741,113.04,113.02,106.01322114]
[1744330161291,39.56,113.03,113.02,100.48051416]
[1744330161488,39.56,113.03,113.02,106.01304736]
[1744330162089,39.56,113.03,113.02,127.89937186]
[1744330162391,48.4,113.03,113.01,35.78748794]
[1744330162581,39.56,113.03,113.01,35.78748794]
[1744330162786,39.56,113.02,113.01,35.78748794]
[1744330163293,39.56,113.02,113.01,11.93087192]
[1744330163794,39.56,113.02,113.01,20.78487192]
[1744330163997,39.56,113.02,113.01,11.93087192]
[1744330164800,39.56,113.02,113.01,8.91442982]
[1744330165795,39.56,113.02,113.01,0.05972982]
[1744330166696,39.56,113.02,113.01,8.91442982]
[1744330167997,0.06519099,113.03,113.02,8.854]
[1744330168197,39.60519099,113.03,113.02,8.854]
[1744330173399,0.06519099,113.03,113.02,8.854]
[1744330174612,39.31971014,113.04,113.03,8.8532]
[1744330175399,19.55580133,113.04,113.03,8.8532]
[1744330175596,12.52240133,113.04,113.03,8.8532]
[1744330175902,39.52,113.07,113.01,0.05972982]
[1744330176103,701.1,113.11,112.99,4.5442]
[1744330176302,39.52,113.1,112.99,4.5442]
[1744330176809,39.52,113.1,113.07,8.8496]
[1744330177107,39.57596996,113.1,113.07,8.91537657]
[1744330177908,39.57596996,113.1,113.08,8.8492]
[1744330178809,39.57596996,113.1,113.07,0.06577657]
[1744330179410,39.57596996,113.1,113.08,8.8488]
[1744330179608,0.05596996,113.1,113.07,0.06577657]
[1744330180012,0.05596996,113.1,113.09,8.8485]
[1744330181609,0.05596996,113.1,113.08,8.849]
[1744330181813,39.5,113.09,113.08,8.849]
[1744330183513,39.5,113.1,113.07,0.06577657]
[1744330183812,8.844,113.15,113.07,0.06577657]
[1744330184018,700.98,113.16,113.04,39.5]
[1744330184212,39.5,113.15,113.05,16.63239437]
[1744330184413,39.5,113.15,113.14,8.8441]
[1744330185210,0.0671176,113.16,113.13,0.06011162]
[1744330186115,0.0671176,113.16,113.15,8.8438]
[1744330186517,0.0671176,113.16,113.13,0.06011162]
[1744330186711,38.04,113.15,113.14,8.8442]
[1744330189627,8.8408,113.19,113.15,8.8431]
[1744330189824,38.04,113.18,113.13,0.06011162]
[1744330190015,38.04,113.18,113.12,35.72775812]
[1744330190319,38.04,113.18,113.15,8.8432]
[1744330190517,38.04,113.18,113.14,176.09199337]
[1744330190918,0.06572712,113.17,113.15,0.06438342]
[1744330191211,0.06572712,113.17,113.16,8.8428]
[1744330192214,0.06572712,113.17,113.15,0.06438342]
[1744330192422,0.06572712,113.17,113.15,8.90788342]
[1744330192717,0.06572712,113.17,113.15,0.06438342]
[1744330192913,0.06572712,113.17,113.16,8.843]
[1744330194315,700.74,113.22,113.2,8.8398]
[1744330194512,38.02,113.21,113.2,8.8398]
[1744330195118,38.02,113.21,113.13,2.2156]
[1744330195418,0.05034628,113.18,113.16,0.06223559]
[1744330196122,0.05034628,113.18,113.17,8.8422]
[1744330198324,0.05034628,113.18,113.17,13.30728677]
[1744330199325,38.07034628,113.18,113.17,8.8422]
[1744330202425,38.02,113.21,113.2,8.8399]
[1744330202829,700.74,113.22,113.2,8.8399]
[1744330203322,38.02,113.21,113.2,8.8399]
[1744330203526,38.02,113.21,113.2,8.90729555]
[1744330204029,700.74,113.22,113.2,8.90729555]
[1744330204228,38.02,113.21,113.2,8.90729555]
[1744330205232,700.74,113.22,113.2,8.90729555]
[1744330205530,38.02,113.21,113.2,8.90729555]
[1744330206425,18.28788297,113.21,113.2,8.90729555]
[1744330207829,700.74,113.22,113.2,8.90729555]
[1744330208030,38.0,113.21,113.2,8.90729555]
[1744330208533,700.74,113.22,113.21,8.8391]
[1744330208729,38.0,113.22,113.21,8.8391]
[1744330208933,38.0,113.24,113.2,0.06739555]
[1744330209133,38.0,113.24,113.23,8.8375]
[1744330210433,38.0,113.27,113.26,8.8351]
[1744330210829,700.0,113.28,113.27,8.8344]
[1744330211032,738.0,113.28,113.27,8.8344]
[1744330211334,738.0,113.28,113.25,0.06625039]
[1744330211730,738.0,113.28,113.26,8.8348]
[1744330213023,738.0,113.28,113.25,8.90185039]
[1744330213436,38.0,113.28,113.25,8.90185039]
[1744330213936,38.0,113.28,113.25,0.06625039]
[1744330214338,38.0,113.28,113.27,8.8344]
[1744330215738,36.54,113.29,113.28,8.8333]
[1744330216039,36.54,113.3,113.28,8.8333]
[1744330217038,36.54,113.3,113.27,0.06175192]
[1744330217238,699.86,113.34,113.27,0.06175192]
[1744330217439,36.54,113.33,113.27,0.06175192]
[1744330217635,36.54,113.33,113.3,8.8315]
[1744330217836,36.54,113.33,113.29,0.05758453]
[1744330218139,36.54,113.33,113.3,8.8314]
[1744330218334,45.3698,113.33,113.3,8.8314]
[1744330218839,38.678,113.36,113.31,8.8312]
[1744330219228,38.678,113.36,113.32,0.06263636]
[1744330221443,8.8282,113.35,113.32,0.06263636]
[1744330221643,38.678,113.36,113.32,0.06263636]
[1744330221942,47.5061,113.36,113.32,8.89273636]
[1744330222544,8.8284,113.35,113.32,8.89273636]
[1744330223046,8.8284,113.35,113.32,0.06263636]
[1744330223943,13.25940173,113.35,113.32,0.06263636]
[1744330224246,13.25940173,113.33,113.32,0.06263636]
[1744330224546,49.77940173,113.33,113.32,0.06263636]
[1744330224846,36.52,113.33,113.32,0.06263636]
[1744330225848,13.25940173,113.35,113.32,0.06263636]
[1744330225849,22.08800173,113.35,113.32,0.06263636]
[1744330226549,36.52,113.36,113.32,0.06263636]
[1744330227050,45.3476,113.36,113.33,8.8292]
[1744330227357,36.52,113.36,113.33,8.8292]
[1744330227546,36.52,113.36,113.32,0.06263636]
[1744330227856,45.3479,113.36,113.32,0.06263636]
[1744330228354,45.3479,113.36,113.33,8.8297]
[1744330229557,13.25940173,113.35,113.32,0.06263636]
[1744330229951,22.08910173,113.33,113.32,0.06263636]
[1744330230251,36.52,113.33,113.26,4.4598]
[1744330230458,36.52,113.33,113.31,8.8309]
[1744330231153,36.58263636,113.33,113.31,8.8309]
[1744330231356,36.58263636,113.33,113.31,8.88930124]
[1744330231557,36.58263636,113.33,113.31,0.05840124]
[1744330231755,49.84447293,113.33,113.31,0.05840124]
[1744330231958,58.67487293,113.33,113.31,0.05840124]
[1744330232254,49.84447293,113.33,113.31,0.05840124]
[1744330232453,8.8305,113.32,113.31,0.05840124]
[1744330232651,49.84447293,113.33,113.31,0.05840124]
[1744330232856,36.58263636,113.33,113.31,0.05840124]
[1744330233261,36.58263636,113.33,113.32,8.8305]
[1744330234162,36.58263636,113.33,113.31,8.88950124]
[1744330234356,36.58263636,113.33,113.31,0.05840124]
[1744330234661,36.58263636,113.33,113.31,8.88920124]
[1744330235651,36.58263636,113.33,113.32,8.8305]
[1744330236065,36.58263636,113.33,113.31,0.05840124]
[1744330236259,36.58263636,113.33,113.31,8.88930124]
[1744330237968,36.58263636,113.33,113.32,8.8305]
[1744330238260,36.58263636,113.33,113.31,0.05840124]
[1744330239063,36.58263636,113.33,113.31,8.88930124]
[1744330239763,36.58263636,113.33,113.32,8.8305]
[1744330239963,36.58263636,113.33,113.31,0.05840124]
[1744330240166,49.84411855,113.33,113.31,0.05840124]
[1744330240365,8.8305,113.32,113.31,0.05840124]
[1744330241671,58.67401855,113.33,113.31,0.05840124]
[1744330241964,36.58263636,113.33,113.31,8.88910124]
[1744330242161,36.58263636,113.33,113.31,0.05840124]
[1744330242566,36.58263636,113.33,113.32,8.8305]
[1744330245664,0.06263636,113.33,113.32,8.8305]
[1744330245862,49.54148219,113.37,113.34,8.8285]
[1744330246164,49.54148219,113.37,113.29,36.28]
[1744330246468,58.36838219,113.37,113.34,8.8285]
[1744330246862,36.28,113.42,113.34,0.06084711]
[1744330247168,49.54148219,113.43,113.34,13.3223293]
[1744330247467,36.28,113.43,113.36,13.26148219]
[1744330247658,36.28,113.43,113.37,0.05817399]
[1744330247859,13.26148219,113.43,113.37,0.05817399]
[1744330248058,49.54148219,113.43,113.37,0.05817399]
[1744330248262,36.28,113.43,113.37,0.05817399]
[1744330248864,13.26148219,113.41,113.37,0.05817399]
[1744330249065,13.26148219,113.39,113.37,0.05817399]
[1744330249259,58.36698219,113.39,113.36,8.8274]
[1744330249460,45.1055,113.39,113.37,0.06456154]
[1744330249669,58.36698219,113.39,113.37,0.06456154]
[1744330250567,8.8258,113.38,113.37,0.06456154]
[1744330252267,8.8282,113.35,113.34,48.07886033]
[1744330252467,49.54148219,113.35,113.34,48.07886033]
[1744330253274,45.1082,113.35,113.34,48.07886033]
[1744330253465,45.1082,113.35,113.34,41.11486033]
[1744330253664,45.1082,113.35,113.33,0.06160221]
[1744330254072,57.49728505,113.35,113.28,2.2145]
[1744330254570,57.49728505,113.35,113.3,8.8316]
[1744330254870,8.8296,113.34,113.3,8.8316]
[1744330255175,0.0584568,113.33,113.31,0.06204388]
[1744330255574,8.8882568,113.33,113.31,0.06204388]
[1744330255874,36.28,113.32,113.31,0.06204388]
[1744330259076,0.0584568,113.33,113.31,0.06204388]
[1744330260574,0.0584568,113.33,113.32,8.8305]
[1744330261572,0.0584568,113.33,113.31,8.89294388]
[1744330264769,0.0584568,113.33,113.31,8.89304388]
[1744330265373,36.28,113.32,113.31,0.06204388]
[1744330266977,36.28,113.32,113.31,8.89334388]
[1744330268080,32.7646,113.32,113.31,8.89334388]
[1744330270778,0.0584568,113.33,113.32,8.8305]
[1744330271183,0.0584568,113.33,113.31,8.89314388]
[1744330271383,0.0584568,113.33,113.31,0.06204388]
[1744330271584,36.3384568,113.33,113.31,0.06204388]
[1744330272086,57.55574185,113.33,113.31,0.06204388]
[1744330272779,57.55574185,113.33,113.27,8.834]
[1744330272979,21.21728505,113.31,113.27,8.834]
[1744330273181,36.28,113.3,113.27,8.834]
[1744330273386,45.1124,113.3,113.27,8.834]
[1744330273884,8.8329,113.29,113.27,0.0580503]
[1744330274085,36.3479391,113.3,113.27,0.0580503]
[1744330274286,36.3479391,113.3,113.28,8.8332]
[1744330274888,36.3479391,113.3,113.27,8.8920503]
[1744330275188,45.1800391,113.3,113.27,8.8920503]
[1744330275389,36.3479391,113.3,113.27,0.0580503]
[1744330275593,36.3479391,113.3,113.28,8.8332]
[1744330275790,36.3479391,113.3,113.27,0.0580503]
[1744330276092,36.3479391,113.3,113.29,8.8329]
[1744330277185,36.3479391,113.3,113.27,0.0580503]
[1744330278084,49.61926088,113.3,113.27,0.0580503]
[1744330278387,58.45166088,113.3,113.27,8.8920503]
[1744330278782,49.61926088,113.3,113.27,0.0580503]
[1744330278985,36.3479391,113.3,113.27,0.0580503]
[1744330279185,36.3479391,113.3,113.28,8.8336]
[1744330280284,0.0679391,113.3,113.28,8.8336]
[1744330280491,0.0679391,113.3,113.27,0.0580503]
[1744330280885,35.72,113.33,113.32,8.8305]
[1744330282584,35.72,113.33,113.31,8.89801911]
[1744330283791,44.5499,113.33,113.31,8.89801911]
[1744330284189,35.72,113.33,113.31,8.89801911]
[1744330284993,35.72,113.33,113.31,0.06671911]
[1744330286286,13.27132178,113.32,113.31,0.06671911]
[1744330286491,13.27132178,113.32,113.24,42.3975]
[1744330286890,8.8318,113.31,113.28,8.8334]
[1744330287091,35.72,113.3,113.24,42.3975]
[1744330287291,44.5522,113.3,113.24,42.3975]
[1744330287793,0.05609816,113.28,113.26,0.06021819]
[1744330288592,0.05609816,113.28,113.27,8.8344]
[1744330288995,0.05609816,113.28,113.26,0.06021819]
[1744330289186,0.05609816,113.28,113.26,8.89501819]
[1744330289386,0.05609816,113.28,113.26,0.06021819]
[1744330289894,0.05609816,113.28,113.27,8.8344]
[1744330293792,35.72,113.31,113.26,0.06021819]
[1744330293998,13.27132178,113.3,113.26,0.06021819]
[1744330294191,8.8333,113.29,113.26,0.06021819]
[1744330294592,8.8333,113.29,113.26,8.89491819]
[1744330294791,8.834,113.28,113.26,0.06021819]
[1744330295298,44.554,113.28,113.26,0.06021819]
[1744330297498,8.8344,113.27,113.26,0.06021819]
[1744330298297,57.82532178,113.28,113.26,0.06021819]
[1744330298498,35.72,113.28,113.26,0.06021819]
[1744330298700,35.72,113.28,113.27,8.8344]
[1744330298995,35.72,113.28,113.26,0.06021819]
[1744330299498,8.8344,113.27,113.26,0.06021819]
[1744330300000,44.554,113.28,113.26,0.06021819]
[1744330300501,8.8344,113.27,113.26,0.06021819]
[1744330301191,44.5744,113.27,113.26,0.06021819]
[1744330303203,8.8361,113.25,113.22,8.8379]
[1744330303700,8.8376,113.23,113.21,11.0477]
[1744330303905,8.8376,113.23,113.18,368.95115501]
[1744330304098,8.8376,113.23,113.18,11.95115501]
[1744330304299,0.0619904,113.22,113.2,8.8394]
[1744330304802,0.0619904,113.22,113.21,8.8391]
[1744330305605,0.0619904,113.22,113.19,0.06447338]
[1744330306203,0.0619904,113.22,113.21,8.8391]
[1744330306905,0.0619904,113.22,113.2,8.8397]
[1744330309000,0.0619904,113.22,113.21,8.8391]
[1744330309207,35.74,113.24,113.19,0.06447338]
[1744330309594,36.46,113.27,113.2,13.27132178]
[1744330309801,36.46,113.27,113.19,36.46]
[1744330310107,36.46,113.27,113.23,8.8375]
[1744330310407,0.06416671,113.26,113.24,0.05962282]
[1744330310600,8.89966671,113.26,113.24,0.05962282]
[1744330315207,8.836,113.25,113.24,0.05962282]
[1744330315904,0.06416671,113.26,113.24,0.05962282]
[1744330316312,8.836,113.25,113.24,0.05962282]